fUST/lending_fUST_20250310
["ID","MTS","AMOUNT","RATE_DAILY","PERIOD"]
[355771341,1741548643700,-1000.0,0.00048219,2]
[355771342,1741548643711,-602.43597525,0.00048219,120]
[355771376,1741548644151,-1716.41402475,0.00048219,120]
[355771378,1741548644161,-500.0,0.00048219,120]
[355771380,1741548644170,-500.0,0.00048219,120]
[355771382,1741548644180,-509.2,0.00048219,120]
[355771384,1741548644190,-573.99,0.00048219,120]
[355771386,1741548644200,-151.0,0.00048219,120]
[355771388,1741548644210,-500.0,0.00048219,120]
[355771390,1741548644219,-180.35195,0.00048219,120]
[355771392,1741548644229,-500.0,0.00048219,120]
[355771394,1741548644239,-151.0,0.00048219,120]
[355771396,1741548644248,-151.0,0.00048219,120]
[355771398,1741548644258,-500.0,0.00048219,120]
[355771400,1741548644268,-500.0,0.00048219,120]
[355771402,1741548644277,-151.0,0.00048219,120]
[355771404,1741548644286,-904.3,0.00048219,120]
[355771406,1741548644296,-500.0,0.00048219,120]
[355771408,1741548644306,-500.0,0.00048219,120]
[355771410,1741548644317,-2781.57,0.00048219,120]
[355771412,1741548644327,-2086.53,0.00048219,120]
[355771414,1741548644337,-500.0,0.00048219,120]
[355771416,1741548644347,-837.93,0.00048219,120]
[355771418,1741548644356,-5751.5,0.00048219,120]
[355771419,1741548644366,-500.0,0.00048219,120]
[355771420,1741548644375,-424.29187278,0.00048219,120]
[355771426,1741548644700,-1000.0,0.00046464,2]
[355771427,1741548644710,-892.08,0.00046565,10]
[355771428,1741548644720,-577.16,0.00046575,120]
[355771429,1741548644731,-359.06812722,0.00048219,120]
[355771430,1741548644741,-194.26046065,0.00048219,120]
[355771431,1741548644750,-500.0,0.00048219,120]
[355771432,1741548644760,-500.0,0.00048219,120]
[355771433,1741548644771,-500.0,0.00048219,120]
[355771434,1741548644781,-421.43141213,0.00048219,120]
[355771435,1741548644794,-78.56858787,0.00048219,120]
[355771436,1741548644804,-500.0,0.00048219,120]
[355771437,1741548644815,-500.0,0.00048219,120]
[355771438,1741548644824,-500.0,0.00048219,120]
[355771439,1741548644835,-1313.99,0.00048219,120]
[355771440,1741548644845,-872.46,0.00048219,120]
[355771441,1741548644856,-500.0,0.00048219,120]
[355771442,1741548644866,-3634.18,0.00048219,120]
[355771443,1741548644876,-29578.47,0.00048219,7]
[355771444,1741548644887,-814.94,0.00048219,120]
[355771445,1741548644897,-464.03,0.00048219,120]
[355771447,1741548644909,-761.87,0.00048219,120]
[355771449,1741548644919,-596.07,0.00048219,120]
[355771450,1741548644929,-500.0,0.00048219,120]
[355771452,1741548644938,-500.0,0.00048219,120]
[355771454,1741548644948,-500.0,0.00048219,120]
[355771456,1741548644958,-1316.69,0.00048219,60]
[355771458,1741548644968,-500.0,0.00048219,120]
[355771460,1741548644977,-500.0,0.00048219,120]
[355771462,1741548644988,-586.69964753,0.00048219,120]
[355771464,1741548644998,-237.17428598,0.00048219,120]
[355771465,1741548645008,-859.87,0.00048219,120]
[355771467,1741548645018,-500.0,0.00048219,120]
[355771469,1741548645028,-1089.22,0.00048219,120]
[355771471,1741548645037,-500.0,0.00048219,120]
[355771473,1741548645047,-151.0,0.00048219,120]
[355771475,1741548645056,-500.0,0.00048219,120]
[355771476,1741548645067,-500.0,0.00048219,120]
[355771478,1741548645076,-500.0,0.00048219,120]
[355771480,1741548645086,-500.0,0.00048219,120]
[355771482,1741548645095,-1718.8,0.00048219,120]
[355771484,1741548645105,-500.0,0.00048219,120]
[355771485,1741548645114,-565.03,0.00048219,120]
[355771487,1741548645124,-151.0,0.00048219,120]
[355771489,1741548645135,-1281.81,0.00048219,120]
[355771491,1741548645148,-500.0,0.00048219,120]
[355771493,1741548645158,-500.0,0.00048219,120]
[355771495,1741548645171,-500.0,0.00048219,120]
[355771496,1741548645187,-500.0,0.00048219,120]
[355771497,1741548645197,-609.64,0.00048219,120]
[355771498,1741548645206,-500.0,0.00048219,120]
[355771499,1741548645216,-573.55,0.00048219,120]
[355771500,1741548645226,-500.0,0.00048219,120]
[355771501,1741548645237,-210.61497434,0.00048219,120]
[355771502,1741548645247,-547.36090854,0.00048219,2]
[355771503,1741548645261,-500.0,0.00048219,120]
[355771504,1741548645271,-500.0,0.00048219,120]
[355771506,1741548645281,-20000.0,0.000483,120]
[355771508,1741548645290,-500.0,0.00048325,120]
[355771510,1741548645300,-151.6525177,0.00048373,5]
[355771512,1741548645309,-150.0,0.00048373,10]
[355771513,1741548645320,-151.0,0.00048373,120]
[355771514,1741548645329,-151.0,0.0004839,110]
[355771515,1741548645339,-6049.06029141,0.0004839,4]
[355771516,1741548645349,-151.0,0.00048399,2]
[355771517,1741548645358,-20000.0,0.000484,120]
[355771518,1741548645368,-300.0,0.000484,26]
[355771519,1741548645378,-150.0,0.000484,120]
[355771520,1741548645388,-151.0,0.000484,120]
[355771521,1741548645397,-213.56812,0.000484,110]
[355771522,1741548645407,-151.0,0.000484,120]
[355771523,1741548645417,-151.0,0.000484,120]
[355771524,1741548645427,-151.0,0.000484,120]
[355771525,1741548645437,-301.341209,0.000484,120]
[355771526,1741548645447,-151.0,0.000484,120]
[355771527,1741548645457,-151.0,0.000484,120]
[355771528,1741548645467,-150.0,0.000484,2]
[355771529,1741548645477,-5494.87126943,0.000484,120]
[355771531,1741548645662,-60.77308944,0.00046465,30]
[355771532,1741548645674,-793.32691056,0.00046465,30]
[355771533,1741548645686,-151.0,0.000468,120]
[355771534,1741548645700,-7741.19987608,0.000484,120]
[355771538,1741548646421,-456.60494672,0.00046575,120]
[355771539,1741548646431,-500.0,0.00046575,2]
[355771540,1741548646440,-1833.62,0.00046575,120]
[355771541,1741548646450,-151.0,0.00047,120]
[355771542,1741548646459,-1000.0,0.00047945,2]
[355771543,1741548646469,-1000.0,0.00047945,2]
[355771544,1741548646478,-1000.0,0.00047945,2]
[355771545,1741548646487,-99357.61263641,0.000484,120]
[355771546,1741548646497,-151.0,0.000484,120]
[355771547,1741548646507,-151.0,0.000484,120]
[355771548,1741548646516,-151.0,0.000484,120]
[355771549,1741548646526,-2200.0,0.00048447,30]
[355771550,1741548646536,-174.5,0.000485,30]
[355771551,1741548646545,-16099.13,0.000485,30]
[355771552,1741548646556,-516.78,0.000485,30]
[355771553,1741548646566,-330.34,0.000485,30]
[355771554,1741548646575,-591.53,0.000485,30]
[355771555,1741548646584,-496.0,0.000485,120]
[355771556,1741548646594,-141060.05582017,0.000485,120]
[355771559,1741548738151,476.92987911,0.0003,3]
[355771560,1741548739270,910.5917872,0.0002802,2]
[355771561,1741548748886,500.0,0.0002802,2]
[355771562,1741548749235,742.10234744,0.00028,10]
[355771575,1741549387725,2379.7017722,0.000289,5]
[355771579,1741549554689,2300.3783796,0.000289,5]
[355771580,1741549632096,-2726.40110477,0.0002792,2]
[355771581,1741549632120,-500.0,0.0002802,2]
[355771582,1741549632141,-200.0,0.00031267,2]
[355771583,1741549632161,-505.73859896,0.00034088,5]
[355771584,1741549632183,-294.35,0.00035,14]
[355771585,1741549632204,-283.09338928,0.00035094,2]
[355771586,1741549632225,-500.0,0.00035193,7]
[355771587,1741549632247,-500.0,0.00035193,2]
[355771588,1741549632271,-500.0,0.00035193,2]
[355771589,1741549632292,-500.0,0.00035193,7]
[355771590,1741549632314,-500.0,0.00035193,7]
[355771591,1741549632334,-252.11290663,0.00035193,2]
[355771592,1741549632357,-500.0,0.00035193,2]
[355771593,1741549632380,-500.0,0.00035193,7]
[355771594,1741549632400,-500.0,0.00035193,7]
[355771595,1741549632423,-500.0,0.00035193,2]
[355771596,1741549632443,-500.0,0.00035193,7]
[355771597,1741549632464,-500.0,0.00035193,2]
[355771598,1741549632487,-500.0,0.00035193,2]
[355771599,1741549632508,-500.0,0.00035193,7]
[355771600,1741549632530,-500.0,0.00035193,7]
[355771601,1741549632552,-500.0,0.00035193,2]
[355771602,1741549632573,-500.0,0.00035193,7]
[355771603,1741549632593,-500.0,0.00035193,7]
[355771604,1741549632615,-500.0,0.00035193,2]
[355771605,1741549632635,-500.0,0.00035193,7]
[355771606,1741549632657,-500.0,0.00035193,2]
[355771607,1741549632680,-436.01708057,0.00035193,2]
[355771608,1741549632702,-203.68819399,0.00035193,7]
[355771609,1741549632858,-500.0,0.00035193,2]
[355771610,1741549632883,-166.54903361,0.00035193,7]
[355771611,1741549632907,-500.0,0.00035193,2]
[355771612,1741549632929,-50.81953596,0.00035193,2]
[355771613,1741549644126,-446.34088803,0.00035193,2]
[355771614,1741549648093,-2.83957601,0.00035193,2]
[355771615,1741549648124,-343.65569282,0.00035193,2]
[355771618,1741549746081,-244.85424378,0.00035199,7]
[355771619,1741549746109,-500.0,0.00035199,2]
[355771620,1741549746134,-500.0,0.00035199,2]
[355771621,1741549746159,-500.0,0.00035199,7]
[355771622,1741549746183,-500.0,0.00035199,2]
[355771623,1741549746206,-500.0,0.00035199,7]
[355771624,1741549746231,-500.0,0.00035199,2]
[355771625,1741549746253,-500.0,0.00035199,2]
[355771626,1741549746277,-500.0,0.00035199,2]
[355771627,1741549746301,-500.0,0.00035199,2]
[355771628,1741549746324,-275.21129067,0.00035199,2]
[355771629,1741549746346,-500.0,0.00035199,2]
[355771630,1741549746371,-500.0,0.00035199,2]
[355771631,1741549746395,-500.0,0.00035199,2]
[355771632,1741549746419,-518.50544818,0.00035199,7]
[355771633,1741549746443,-500.0,0.00035199,2]
[355771634,1741549746466,-500.0,0.00035199,2]
[355771635,1741549746489,-584.31158452,0.00035199,2]
[355771636,1741549746512,-500.0,0.00035199,2]
[355771637,1741549746535,-500.0,0.00035199,2]
[355771638,1741549746559,-500.0,0.00035199,2]
[355771639,1741549746582,-500.0,0.00035199,2]
[355771640,1741549746608,-500.0,0.00035199,2]
[355771641,1741549746632,-500.0,0.00035199,2]
[355771642,1741549746655,-500.0,0.00035199,2]
[355771643,1741549746679,-500.0,0.00035199,2]
[355771644,1741549746702,-500.0,0.00035199,2]
[355771645,1741549746724,-500.0,0.00035199,2]
[355771646,1741549746747,-500.0,0.00035199,2]
[355771647,1741549746769,-500.0,0.00035199,2]
[355771648,1741549746792,-500.0,0.00035199,2]
[355771649,1741549746815,-500.0,0.00035199,2]
[355771650,1741549746836,-500.0,0.000352,5]
[355771651,1741549746857,-500.0,0.0003568,5]
[355771652,1741549746876,-370.23883468,0.0003568,5]
[355771653,1741549746895,-500.0,0.0003568,2]
[355771654,1741549746913,-500.0,0.0003568,5]
[355771655,1741549746933,-500.0,0.0003568,5]
[355771656,1741549746954,-416.66666667,0.00035699,2]
[355771657,1741549746974,-160.0,0.00035699,2]
[355771658,1741549746994,-500.0,0.00035882,5]
[355771659,1741549747014,-500.0,0.0003589,2]
[355771660,1741549747036,-2223.69910028,0.000359,7]
[355771661,1741549747058,-167.643,0.00035906,5]
[355771662,1741549747079,-173.004,0.00035906,5]
[355771663,1741549747101,-177.56325,0.00035906,5]
[355771664,1741549747121,-167.4075,0.00035906,5]
[355771665,1741549747146,-500.0,0.00037069,2]
[355771666,1741549747167,-188.0,0.0003756,2]
[355771667,1741549747190,-21878.606734,0.0003756,2]
[355771668,1741549756093,-3021.393266,0.0003756,2]
[355771669,1741549756116,-500.0,0.00037771,5]
[355771670,1741549756138,-500.0,0.0003966,5]
[355771671,1741549756160,-163.605257,0.0004045,5]
[355771672,1741549756181,-1000.0,0.00041159,10]
[355771673,1741549756202,-1000.0,0.00041159,2]
[355771674,1741549756223,-500.0,0.00041211,2]
[355771675,1741549764137,-500.0,0.00041643,30]
[355771676,1741549789707,206.07981861,0.0003546,2]
[355771677,1741549789889,206.07981861,0.0004046,2]
[355771729,1741549832535,-167.4075,0.0004278,14]
[355771731,1741549832546,-500.0,0.00045205,60]
[355771733,1741549832556,-206.07981861,0.0004546,2]
[355771735,1741549832566,-172.244302,0.0004557,30]
[355771737,1741549832576,-154.4565971,0.00046247,120]
[355771739,1741549832586,-6000.0,0.000464,3]
[355771741,1741549832596,-150.0,0.00046464,30]
[355771744,1741549832606,-223.40453839,0.00046475,2]
[355771747,1741549832617,-500.0,0.00046532,2]
[355771749,1741549832627,-197.24569896,0.00046564,2]
[355771751,1741549832638,-500.0,0.00046564,2]
[355771753,1741549832649,-500.0,0.00046564,2]
[355771755,1741549832659,-743.4,0.00046565,10]
[355771756,1741549832670,-619.5,0.00046565,10]
[355771758,1741549832684,-516.25,0.00046565,10]
[355771760,1741549832694,-430.21,0.00046565,10]
[355771762,1741549832705,-3024.53014572,0.00046565,4]
[355771764,1741549832715,-270.17037496,0.00046565,4]
[355771766,1741549832724,-500.0,0.00046573,10]
[355771768,1741549832734,-500.0,0.00046573,2]
[355771770,1741549832744,-500.0,0.00046575,120]
[355771772,1741549832754,-500.0,0.00046575,120]
[355771774,1741549832763,-500.0,0.00046575,120]
[355771775,1741549832773,-500.0,0.00046575,120]
[355771777,1741549832783,-500.0,0.00046575,120]
[355771779,1741549832794,-500.0,0.00046575,120]
[355771781,1741549832804,-500.0,0.00046575,2]
[355771783,1741549832813,-58.33249265,0.00046575,2]
[355771786,1741549832830,-342.70128717,0.00046564,2]
[355771788,1741549832839,-1008.59969465,0.00046575,2]
[355771790,1741549832850,-9414.9278127,0.00046575,2]
[355771792,1741549832860,-500.0,0.00046575,2]
[355771794,1741549832870,-500.0,0.00046575,120]
[355771796,1741549832879,-500.0,0.00046575,120]
[355771798,1741549832888,-885.85,0.00046575,120]
[355771800,1741549832898,-1000.0,0.00046575,2]
[355771802,1741549832908,-500.0,0.00046575,120]
[355771804,1741549832918,-500.0,0.00046575,120]
[355771806,1741549832929,-234.0763462,0.00046575,120]
[355771808,1741549832939,-500.0,0.00046575,120]
[355771809,1741549832948,-500.0,0.00046575,120]
[355771810,1741549832958,-500.0,0.00046575,120]
[355771811,1741549832968,-500.0,0.00046575,120]
[355771812,1741549832978,-1932.38,0.00046575,120]
[355771813,1741549832987,-500.0,0.00046575,120]
[355771814,1741549832997,-477.40270064,0.00046575,120]
[355771815,1741549833008,-500.0,0.00046575,120]
[355771816,1741549833018,-1121.58,0.00046575,120]
[355771817,1741549833028,-500.0,0.00046575,120]
[355771818,1741549833038,-500.0,0.00046575,120]
[355771819,1741549833048,-500.0,0.00046575,120]
[355771820,1741549833058,-500.0,0.00046575,120]
[355771821,1741549833068,-500.0,0.00046575,120]
[355771822,1741549833079,-500.0,0.00046575,120]
[355771823,1741549833093,-500.0,0.00046575,120]
[355771824,1741549833103,-1844.16,0.00046575,120]
[355771825,1741549833113,-791.26,0.00046575,120]
[355771826,1741549833123,-500.0,0.00046575,120]
[355771827,1741549833134,-500.0,0.00046575,120]
[355771828,1741549833144,-733.19,0.00046575,120]
[355771829,1741549833155,-2560.31,0.00046575,120]
[355771830,1741549833165,-1179.32,0.00046575,120]
[355771831,1741549833176,-500.0,0.00046575,120]
[355771832,1741549833188,-1210.16,0.00046575,120]
[355771833,1741549833198,-2599.1959265,0.00046575,120]
[355771880,1741549838366,-38.49947431,0.00046575,120]
[355771882,1741549838391,-2645.48459919,0.00046575,120]
[355771884,1741549838401,-504.61,0.00046575,120]
[355771886,1741549838411,-701.39,0.00046575,120]
[355771889,1741549838420,-500.0,0.00046575,120]
[355771892,1741549838431,-719.59,0.00046575,120]
[355771895,1741549838441,-500.0,0.00046575,120]
[355771897,1741549838451,-500.0,0.00046575,120]
[355771900,1741549838460,-25881.16,0.00046575,7]
[355771903,1741549838469,-500.0,0.00046575,120]
[355771905,1741549838479,-500.0,0.00046575,120]
[355771907,1741549838488,-500.0,0.00046575,120]
[355771909,1741549838498,-500.0,0.00046575,120]
[355771911,1741549838508,-549.94,0.00046575,120]
[355771912,1741549838518,-500.0,0.00046575,120]
[355771914,1741549838527,-500.0,0.00046575,120]
[355771916,1741549838537,-752.38,0.00046575,120]
[355771918,1741549838547,-500.0,0.00046575,120]
[355771920,1741549838556,-803.23,0.00046575,120]
[355771922,1741549838565,-3179.91,0.00046575,120]
[355771924,1741549838575,-1214.8,0.00046575,60]
[355771926,1741549838583,-751.88,0.00046575,120]
[355771928,1741549838593,-500.0,0.00046575,120]
[355771929,1741549838603,-953.06,0.00046575,120]
[355771930,1741549838613,-500.0,0.00046575,120]
[355771931,1741549838622,-500.0,0.00046575,120]
[355771932,1741549838632,-500.0,0.00046575,120]
[355771933,1741549838642,-500.0,0.00046575,120]
[355771934,1741549838651,-500.0,0.00046575,120]
[355771935,1741549838782,-500.0,0.00046575,120]
[355771936,1741549838793,-500.0,0.00046575,120]
[355771937,1741549838803,-500.0,0.00046575,120]
[355771938,1741549838812,-500.0,0.00046575,120]
[355771939,1741549838822,-500.0,0.00046575,120]
[355771940,1741549838832,-500.0,0.00046575,120]
[355771941,1741549838842,-484.90837654,0.00046575,120]
[355771942,1741549838852,-500.0,0.00046575,120]
[355771943,1741549838861,-500.0,0.00046575,120]
[355771944,1741549838871,-500.0,0.00046575,120]
[355771945,1741549838881,-500.0,0.00046575,120]
[355771946,1741549838891,-1585.8,0.00046575,120]
[355771947,1741549838902,-515.23,0.00046575,120]
[355771948,1741549838912,-500.0,0.00046575,120]
[355771949,1741549838922,-500.0,0.00046575,120]
[355771950,1741549838933,-500.0,0.00046575,120]
[355771951,1741549838942,-500.0,0.00046575,120]
[355771952,1741549838952,-500.0,0.00046575,120]
[355771953,1741549838962,-500.0,0.00046575,120]
[355771954,1741549838972,-500.0,0.00046575,120]
[355771955,1741549838981,-500.0,0.00046575,120]
[355771956,1741549838991,-500.0,0.00046575,120]
[355771957,1741549839001,-500.0,0.00046575,120]
[355771958,1741549839012,-500.0,0.00046575,120]
[355771959,1741549839022,-183.67918624,0.00046575,120]
[355771960,1741549839032,-500.0,0.00046575,120]
[355771961,1741549839041,-500.0,0.00046575,120]
[355771962,1741549839051,-501.85,0.00046575,120]
[355771963,1741549839061,-500.0,0.00046575,120]
[355771964,1741549839070,-500.0,0.00046575,120]
[355771965,1741549839080,-558.72,0.00046575,120]
[355771966,1741549839092,-500.0,0.00046575,120]
[355771967,1741549839102,-500.0,0.00046575,15]
[355771968,1741549839111,-314.40554795,0.00046575,120]
[355771969,1741549839123,-606.267026,0.00046575,2]
[355771970,1741549839132,-4963.30008306,0.00046575,10]
[355771971,1741549839142,-150.0,0.00046575,10]
[355771972,1741549839152,-154.4565971,0.0004674,120]
[355771973,1741549839164,-500.0,0.00046841,6]
[355771974,1741549839175,-154.22678559,0.00046849,120]
[355771975,1741549839186,-500.0,0.00046978,6]
[355771976,1741549839196,-600.0,0.0004704,2]
[355771977,1741549839206,-3024.53014572,0.00047113,4]
[355771978,1741549839217,-270.17037496,0.00047113,4]
[355771979,1741549839226,-500.0,0.00047115,6]
[355771980,1741549839235,-549.50071635,0.00047123,120]
[355771981,1741549839245,-500.0,0.00047123,120]
[355771982,1741549839255,-500.0,0.00047123,120]
[355771983,1741549839264,-500.0,0.00047123,120]
[355771984,1741549839274,-10481.86,0.00047123,2]
[355771985,1741549839283,-500.0,0.00047123,2]
[355771986,1741549839293,-500.0,0.00047123,120]
[355771987,1741549839303,-500.0,0.00047123,120]
[355771988,1741549839312,-885.85,0.00047123,120]
[355771989,1741549839322,-1000.0,0.00047123,2]
[355771990,1741549839331,-500.0,0.00047123,120]
[355771991,1741549839340,-500.0,0.00047123,120]
[355771992,1741549839350,-1932.38,0.00047123,120]
[355771993,1741549839359,-500.0,0.00047123,120]
[355771994,1741549839368,-1121.58,0.00047123,120]
[355771995,1741549839378,-173.2503775,0.00047123,120]
[355771996,1741549839387,-500.0,0.00047123,120]
[355771997,1741549839397,-500.0,0.00047123,120]
[355771998,1741549839407,-500.0,0.00047123,120]
[355771999,1741549839416,-500.0,0.00047123,120]
[355772000,1741549839426,-500.0,0.00047123,120]
[355772001,1741549839436,-1844.16,0.00047123,120]
[355772002,1741549839445,-791.26,0.00047123,120]
[355772003,1741549839455,-330.42231637,0.00047123,120]
[355772004,1741549839465,-500.0,0.00047123,120]
[355772005,1741549839475,-733.19,0.00047123,120]
[355772006,1741549839485,-2560.31,0.00047123,120]
[355772007,1741549839495,-1210.16,0.00047123,120]
[355772008,1741549839505,-5283.18,0.00047123,120]
[355772009,1741549839515,-504.61,0.00047123,120]
[355772010,1741549839524,-701.39,0.00047123,120]
[355772011,1741549839534,-719.59,0.00047123,120]
[355772012,1741549839544,-500.0,0.00047123,120]
[355772013,1741549839553,-500.0,0.00047123,120]
[355772014,1741549839563,-25881.16,0.00047123,7]
[355772015,1741549839575,-500.0,0.00047123,120]
[355772016,1741549839585,-500.0,0.00047123,120]
[355772017,1741549839597,-500.0,0.00047123,120]
[355772018,1741549839607,-500.0,0.00047123,120]
[355772019,1741549839617,-549.94,0.00047123,120]
[355772020,1741549839627,-500.0,0.00047123,120]
[355772021,1741549839636,-752.38,0.00047123,120]
[355772022,1741549839647,-500.0,0.00047123,120]
[355772023,1741549839657,-803.23,0.00047123,120]
[355772024,1741549839666,-3179.91,0.00047123,120]
[355772026,1741549839676,-1214.8,0.00047123,60]
[355772027,1741549839686,-751.88,0.00047123,120]
[355772028,1741549839695,-500.0,0.00047123,120]
[355772029,1741549839705,-953.06,0.00047123,120]
[355772030,1741549839714,-500.0,0.00047123,120]
[355772031,1741549839724,-500.0,0.00047123,120]
[355772032,1741549839733,-500.0,0.00047123,120]
[355772033,1741549839743,-500.0,0.00047123,120]
[355772034,1741549839752,-500.0,0.00047123,120]
[355772035,1741549839761,-500.0,0.00047123,120]
[355772036,1741549839770,-500.0,0.00047123,120]
[355772037,1741549839780,-500.0,0.00047123,120]
[355772038,1741549839789,-235.28259897,0.00047123,120]
[355772039,1741549839799,-435.85593879,0.00047123,120]
[355772040,1741549839808,-500.0,0.00047123,120]
[355772041,1741549839818,-500.0,0.00047123,120]
[355772042,1741549839828,-1585.8,0.00047123,120]
[355772043,1741549839837,-515.23,0.00047123,120]
[355772044,1741549839846,-500.0,0.00047123,120]
[355772045,1741549839856,-500.0,0.00047123,120]
[355772046,1741549839866,-500.0,0.00047123,120]
[355772047,1741549839876,-500.0,0.00047123,120]
[355772048,1741549839886,-500.0,0.00047123,120]
[355772049,1741549839896,-500.0,0.00047123,120]
[355772050,1741549839906,-500.0,0.00047123,120]
[355772051,1741549839916,-500.0,0.00047123,120]
[355772052,1741549839926,-500.0,0.00047123,120]
[355772054,1741549839935,-500.0,0.00047123,120]
[355772056,1741549839945,-500.0,0.00047123,120]
[355772057,1741549839955,-500.0,0.00047123,120]
[355772058,1741549839965,-500.0,0.00047123,120]
[355772059,1741549839974,-501.85,0.00047123,120]
[355772060,1741549839984,-500.0,0.00047123,120]
[355772062,1741549839994,-500.0,0.00047123,120]
[355772064,1741549840004,-558.72,0.00047123,120]
[355772066,1741549840014,-500.0,0.00047123,120]
[355772068,1741549840023,-500.0,0.00047123,15]
[355772070,1741549840033,-181.48026065,0.00047123,10]
[355772072,1741549840042,-500.0,0.00047173,10]
[355772074,1741549840052,-456.5,0.000472,30]
[355772076,1741549840062,-1410.22,0.000472,2]
[355772078,1741549840072,-154.4565971,0.00047233,120]
[355772080,1741549840083,-500.0,0.00047252,6]
[355772082,1741549840093,-500.0,0.00047389,6]
[355772084,1741549840104,-1230.3248057,0.00047432,4]
[355772086,1741549840113,-1346.02603186,0.00047441,2]
[355772088,1741549840126,-154.22678559,0.00047479,120]
[355772090,1741549840135,-500.0,0.00047526,6]
[355772092,1741549840145,-1512.26507286,0.00047528,4]
[355772094,1741549840156,-600.0,0.0004753,2]
[355772096,1741549840167,-532.09,0.00047534,9]
[355772098,1741549840177,-531.0,0.00047536,2]
[355772100,1741549840189,-531.0,0.00047536,2]
[355772102,1741549840198,-531.0,0.00047536,2]
[355772104,1741549840208,-531.0,0.00047536,2]
[355772106,1741549840217,-531.0,0.00047536,2]
[355772108,1741549840226,-531.0,0.00047536,2]
[355772110,1741549840235,-531.0,0.00047536,2]
[355772112,1741549840245,-531.0,0.00047536,2]
[355772114,1741549840255,-531.0,0.00047536,2]
[355772116,1741549840265,-531.0,0.00047536,2]
[355772118,1741549840275,-531.0,0.00047536,2]
[355772121,1741549840285,-531.0,0.00047536,2]
[355772123,1741549840295,-531.0,0.00047536,2]
[355772125,1741549840304,-531.0,0.00047536,2]
[355772127,1741549840314,-531.0,0.00047538,2]
[355772129,1741549840323,-531.0,0.00047538,2]
[355772131,1741549840332,-531.0,0.00047538,2]
[355772133,1741549840342,-531.0,0.00047538,2]
[355772135,1741549840352,-531.0,0.00047538,2]
[355772137,1741549840361,-531.0,0.00047538,2]
[355772139,1741549840370,-531.0,0.00047538,2]
[355772141,1741549840379,-531.0,0.00047538,2]
[355772143,1741549840388,-531.0,0.00047538,2]
[355772145,1741549840398,-531.0,0.00047538,2]
[355772147,1741549840407,-531.0,0.00047538,2]
[355772149,1741549840417,-531.0,0.00047538,2]
[355772150,1741549840426,-531.0,0.00047538,2]
[355772153,1741549840438,-151.0,0.00047573,120]
[355772154,1741549840447,-151.0,0.00047573,120]
[355772157,1741549840457,-151.0,0.00047573,120]
[355772159,1741549840467,-151.0,0.00047573,120]
[355772161,1741549840477,-606.267026,0.00047573,2]
[355772163,1741549840486,-1000.0,0.00047643,2]
[355772165,1741549840495,-1000.0,0.00047643,2]
[355772167,1741549840505,-3024.53014572,0.00047661,4]
[355772169,1741549840514,-270.17037496,0.00047661,4]
[355772171,1741549840524,-500.0,0.00047663,6]